Service area,Service sub division,TVBC Service,Expense type,Detailed expense type,TVBC account code,Date Paid,Transaction Reference, Nett Value ,Supplier Name
Central Services,Corporate & Democratic Core,Corporate & Democratic,Supplies & Services,Communications & Computing,Computer Hardware,12/04/2018,239759,-1142,Advanced Business Solutions
"Highways, Roads & Transport",Parking Services,Plan Pol & Transport,Supplies & Services,Services,Professional Fees,19/04/2018,239721,-910.45,Keyline Chartered Security Ltd
Central Services to the Public,Management & Support Services,IT,Supplies & Services,Communications & Computing,Hardware Maintenance,13/04/2018,187231,-872.43,Intrinsic Technology
Environmental & Regulatory,Community Development,Community and Leisure ,Supplies & Services,Grants & Subscriptions,Subscriptions,12/04/2018,239481,416.67,Locality
Planning & Development,Economic Development,Estates and Economic Development ,Supplies & Services,Grants & Subscriptions,Grants,11/04/2018,239922,500,Personal data - Data Protection Act 1998
Cultural & Related,Culture & Heritage,Community and Leisure ,Supplies & Services,Miscellaneous Expenses,Booking Of Acts,12/04/2018,239734,500,The Mustangs
Planning & Development,Community Development,Community and Leisure ,Supplies & Services,Grants & Subscriptions,Grants,11/04/2018,239929,500,The Over 50s Club
Central Services to the Public,Management & Support Services,Estates and Economic Development ,Premises related Expenditure,Energy Costs,Gas,12/04/2018,239708,417.69,Total Gas & Power Ltd
External Trading Accounts,Business Parks,Estates and Economic Development ,Premises related Expenditure,Repairs Alterations & Maintenance of Buildings,Planned Maintenance - Non Est,12/04/2018,239987,418.68,Nurture Landscapes Ltd
Environmental & Regulatory,Waste management,Environmental,Transport Related Expenditure,Direct Transport Costs,Repair Materials,12/04/2018,239785,419.15,Dennis Eagle Ltd
Cultural & Related,Culture & Heritage,Estates and Economic Development ,Premises related Expenditure,Energy Costs,Gas,12/04/2018,239595,419.47,Total Gas & Power Ltd
Environmental & Regulatory,Waste management,Environmental,Transport Related Expenditure,Direct Transport Costs,Repair Materials,19/04/2018,240309,420.29,Dennis Eagle Ltd
Cultural & Related,Open Spaces,Environmental,Supplies & Services,Miscellaneous Expenses,Waste Collection,12/04/2018,239776,423.52,Raymond Brown Minerals & Recycling Ltd
Central Services to the Public,Management & Support Services,Legal & Democratic,Supplies & Services,Services,Training Courses,05/04/2018,239420,430,Llg Legal Training
Environmental & Regulatory,Waste management,Environmental,Employees,Indirect Employee Expenses,Agency Staff - Waged Posts,19/04/2018,240356,324,Abacus Employment Services Ltd
Environmental & Regulatory,Waste management,Environmental,Employees,Indirect Employee Expenses,Agency Staff - Waged Posts,19/04/2018,240356,108,Abacus Employment Services Ltd
Housing Services,Homelessness,Housing and Environmental Health ,Supplies & Services,Miscellaneous Expenses,Bed & Breakfast,26/04/2018,241017,525,Cabin B & B
Environmental & Regulatory,Waste management,Environmental,Transport Related Expenditure,Direct Transport Costs,Repair Materials,26/04/2018,240798,440.46,Adams Morey Ltd
Cultural & Related,Open Spaces,Environmental,Transport Related Expenditure,Direct Transport Costs,Repair Materials,19/04/2018,239978,449.2,Greenshields Jcb Ltd
Cultural & Related,Open Spaces,Community and Leisure ,Premises related Expenditure,Grounds Maintenance Costs,Gm - Additional Works,19/04/2018,240609,450,Personal data - Data Protection Act 1998
Central Services to the Public,Management & Support Services,Estates and Economic Development ,Premises related Expenditure,Repairs Alterations & Maintenance of Buildings,Building Maint - Non Estates,26/04/2018,240814,453.41,Btu Installation & Maintenance Ltd
Cultural & Related,Culture & Heritage,Estates and Economic Development ,Premises related Expenditure,Energy Costs,Gas,12/04/2018,239538,453.79,Total Gas & Power Ltd
Environmental & Regulatory,Waste management,Environmental,Supplies & Services,Miscellaneous Expenses,Promotions / Special Events,19/04/2018,240453,462.66,Frenzy Creative Ltd
Environmental & Regulatory,Waste management,Environmental,Transport Related Expenditure,Direct Transport Costs,Repair Materials,12/04/2018,239784,464.42,Dennis Eagle Ltd
Environmental & Regulatory,Waste management,Environmental,Transport Related Expenditure,Direct Transport Costs,Repair Materials,19/04/2018,240305,218.26,Dennis Eagle Ltd
Environmental & Regulatory,Waste management,Environmental,Transport Related Expenditure,Direct Transport Costs,Repair Materials,19/04/2018,240305,252.29,Dennis Eagle Ltd
Central Services to the Public,Management & Support Services,Estates and Economic Development ,Third Party Payments,Other Establishments,Private Contractors,19/04/2018,240575,473.19,Landmarks Sustainability Ltd
Environmental & Regulatory,Waste management,Environmental,Employees,Indirect Employee Expenses,Agency Staff - Waged Posts,05/04/2018,239427,477.14,Simple Recruitment Services Ltd
Environmental & Regulatory,Regulatory Services,Housing and Environmental Health ,Employees,Indirect Employee Expenses,Temporary Staff,12/04/2018,239736,478.4,Buckingham Futures Limited
"Highways, Roads & Transport",Public Transport,Plan Pol & Transport,Third Party Payments,Transport Operators in Respect of Concessionary Fares,Voluntary Orgs Reimbursement,26/04/2018,241083,580.7,Thorngate Village Care Group
Central Services to the Public,Management & Support Services,Legal & Democratic,Supplies & Services,Services,Legal Fees,19/04/2018,240465,484,Bevan Brittan Llp
Planning & Development,Community Development,Community and Leisure ,Supplies & Services,Grants & Subscriptions,Grants,25/04/2018,240964,600,Nursling & Rownhams Village Hall
Central Services to the Public,Management & Support Services,Legal & Democratic,Supplies & Services,Services,Legal Fees,12/04/2018,239753,500,Cornerstone Barristers
Central Services to the Public,Management & Support Services,Legal & Democratic,Supplies & Services,Services,Professional Advice,26/04/2018,240622,500,Sampson Coward
Cultural & Related,Tourism,Estates and Economic Development ,Supplies & Services,Miscellaneous Expenses,Advertising,12/04/2018,239531,500,Tlm Media Ltd
Environmental & Regulatory,Community Development,Community and Leisure ,Supplies & Services,Services,Coaches Fees,19/04/2018,240448,600,Don'T Rain Ltd
Housing Services,Housing Benefits ,Revenues,Supplies & Services,Services,External Training Consultants,25/04/2018,240373,250,Airey Consultancy Services Ltd
Central Services to the Public,Local Tax Collection,Revenues,Supplies & Services,Services,External Training Consultants,25/04/2018,240373,250,Airey Consultancy Services Ltd
Central Services to the Public,Management & Support Services,IT,Supplies & Services,Services,Professional Advice,19/04/2018,239971,600,Bonallack & Bishop
Environmental & Regulatory,Waste management,Environmental,Transport Related Expenditure,Direct Transport Costs,Repair Materials,19/04/2018,240447,505.66,Dennis Eagle Ltd
External Trading Accounts,Business Parks,Estates and Economic Development ,Supplies & Services,Communications & Computing,Land Line Telephone Charges,26/04/2018,240959,28.6,Virgin Media Payments Ltd
Cultural & Related,Culture & Heritage,Estates and Economic Development ,Supplies & Services,Communications & Computing,Land Line Telephone Charges,26/04/2018,240959,26.05,Virgin Media Payments Ltd
Cultural & Related,Culture & Heritage,Estates and Economic Development ,Supplies & Services,Communications & Computing,Land Line Telephone Charges,26/04/2018,240959,39.24,Virgin Media Payments Ltd
Central Services to the Public,Management & Support Services,IT,Supplies & Services,Communications & Computing,Communication Links,26/04/2018,240959,26,Virgin Media Payments Ltd
Central Services to the Public,Management & Support Services,IT,Supplies & Services,Communications & Computing,Communication Links,26/04/2018,240959,67,Virgin Media Payments Ltd
Cultural & Related,Recreation & Sport,Community and Leisure ,Supplies & Services,Communications & Computing,Land Line Telephone Charges,26/04/2018,240959,26,Virgin Media Payments Ltd
Cultural & Related,Recreation & Sport,Community and Leisure ,Supplies & Services,Communications & Computing,Land Line Telephone Charges,26/04/2018,240959,13.4,Virgin Media Payments Ltd
Cultural & Related,Recreation & Sport,Community and Leisure ,Supplies & Services,Communications & Computing,Land Line Telephone Charges,26/04/2018,240959,13,Virgin Media Payments Ltd
Cultural & Related,Culture & Heritage,Community and Leisure ,Supplies & Services,Communications & Computing,Communication Links,26/04/2018,240959,74.19,Virgin Media Payments Ltd
"Highways, Roads & Transport",Parking Services,Plan Pol & Transport,Supplies & Services,Communications & Computing,Alarm Lines,26/04/2018,240959,37,Virgin Media Payments Ltd
Central Services to the Public,Management & Support Services,Environmental,Supplies & Services,Communications & Computing,Land Line Telephone Charges,26/04/2018,240959,66.7,Virgin Media Payments Ltd
Central Services to the Public,Emergency Planning,Corporate & Democratic,Supplies & Services,Communications & Computing,Land Line Telephone Charges,26/04/2018,240959,91,Virgin Media Payments Ltd
Environmental & Regulatory,Waste management,Environmental,Supplies & Services,Miscellaneous Expenses,Recycling Campaign,12/04/2018,240046,520.75,Allwag Promotions Ltd
Planning & Development,Community Development,Community and Leisure ,Supplies & Services,Grants & Subscriptions,Grants,12/04/2018,239964,625,Romsey Carnival
Cultural & Related,Open Spaces,Environmental,Transport Related Expenditure,Direct Transport Costs,Repair Materials,12/04/2018,239472,526.18,T H White Ltd
Central Services to the Public,Local Tax Collection,Revenues,Supplies & Services,"Printing, Stationery & General Office Expenses",Postage Costs,26/04/2018,240868,21.1,Royal Mail
Central Services to the Public,Local Tax Collection,Revenues,Supplies & Services,"Printing, Stationery & General Office Expenses",Postage Costs,26/04/2018,240868,318.14,Royal Mail
Housing Services,Housing Benefits ,Revenues,Supplies & Services,"Printing, Stationery & General Office Expenses",Postage Costs,26/04/2018,240868,95.45,Royal Mail
Central Services to the Public,Local Tax Collection,Revenues,Supplies & Services,"Printing, Stationery & General Office Expenses",Postage Costs,26/04/2018,240868,95.44,Royal Mail
Central Services to the Public,Management & Support Services,Environmental,Transport Related Expenditure,Direct Transport Costs,Repair Materials,19/04/2018,240304,535.22,Dennis Eagle Ltd
Central Services to the Public,Management & Support Services,Legal & Democratic,Employees,Indirect Employee Expenses,Agency Staff - Waged Posts,12/04/2018,239144,540,Venn Group
Cultural & Related,Culture & Heritage,Community and Leisure ,Supplies & Services,"Printing, Stationery & General Office Expenses",Licences / Affiliation Fees,19/04/2018,240068,540.98,Ppl Prs Ltd
Central Services to the Public,Management & Support Services,IT,Supplies & Services,Communications & Computing,Software Maintenance,26/04/2018,240870,547,Dell Computer Corporation Ltd
Cultural & Related,Culture & Heritage,Estates and Economic Development ,Supplies & Services,Miscellaneous Expenses,Waste Collection,12/04/2018,239969,163.3,Suez Recycling And Recovery Uk Ltd
Central Services to the Public,Management & Support Services,Estates and Economic Development ,Supplies & Services,Miscellaneous Expenses,Waste Collection,12/04/2018,239969,386.37,Suez Recycling And Recovery Uk Ltd
Central Services to the Public,Management & Support Services,Revenues,Supplies & Services,Communications & Computing,Hardware Maintenance,26/04/2018,240836,550,Smart Securtiy Systems Ltd
Central Services to the Public,Management & Support Services,Estates and Economic Development ,Third Party Payments,Other Establishments,Private Contractors,26/04/2018,241009,550,Tls Fire & Security Llp
Central Services to the Public,Local Tax Collection,Revenues,Supplies & Services,"Equipment, Furniture & Materials",Equipment Lease Rentals,19/04/2018,240382,221.69,Neopost Finance Ltd
Central Services to the Public,Local Tax Collection,Revenues,Supplies & Services,"Equipment, Furniture & Materials",Equipment Lease Rentals,19/04/2018,240382,221.7,Neopost Finance Ltd
Housing Services,Housing Benefits ,Revenues,Supplies & Services,"Equipment, Furniture & Materials",Equipment Lease Rentals,19/04/2018,240382,55.42,Neopost Finance Ltd
Central Services to the Public,Local Tax Collection,Revenues,Supplies & Services,"Equipment, Furniture & Materials",Equipment Lease Rentals,19/04/2018,240382,55.42,Neopost Finance Ltd
Planning & Development,Community Development,Community and Leisure ,Supplies & Services,Grants & Subscriptions,Grants,11/04/2018,239986,666,15th Romsey (North Baddesley) Scout Group
External Trading Accounts,Business Parks,Estates and Economic Development ,Premises related Expenditure,Energy Costs,Gas,26/04/2018,240459,562.39,Total Gas & Power Ltd
Housing Services,Homelessness,Housing and Environmental Health ,Supplies & Services,Miscellaneous Expenses,Bed & Breakfast,26/04/2018,241021,675,Cabin B & B
Central Services to the Public,Management & Support Services,Environmental,Supplies & Services,"Printing, Stationery & General Office Expenses",Stationery,19/04/2018,239445,273.98,Lyreco Uk Ltd
Central Services to the Public,Management & Support Services,Environmental,Supplies & Services,"Printing, Stationery & General Office Expenses",Print Consumables,19/04/2018,239445,95.11,Lyreco Uk Ltd
Central Services,Corporate & Democratic Core,Corporate & Democratic,Supplies & Services,"Printing, Stationery & General Office Expenses",Stationery,19/04/2018,239445,144.19,Lyreco Uk Ltd
Central Services to the Public,Management & Support Services,Environmental,Transport Related Expenditure,Direct Transport Costs,Repair Materials,26/04/2018,240831,565,M & M Fern Radiators
Central Services to the Public,Local Tax Collection,Revenues,Supplies & Services,"Printing, Stationery & General Office Expenses",External Printing,26/04/2018,240865,159.2,Hound Envelopes Limited
Central Services to the Public,Local Tax Collection,Revenues,Supplies & Services,"Printing, Stationery & General Office Expenses",External Printing,26/04/2018,240865,410.4,Hound Envelopes Limited
Cultural & Related,Open Spaces,Environmental,Supplies & Services,Communications & Computing,Mobile Telephone Charges,26/04/2018,240540,189.01,Vodafone Limited
Environmental & Regulatory,Street Cleansing (not chargeable to Highways),Environmental,Supplies & Services,Communications & Computing,Mobile Telephone Charges,26/04/2018,240540,182.66,Vodafone Limited
Environmental & Regulatory,Waste management,Environmental,Supplies & Services,Communications & Computing,Mobile Telephone Charges,26/04/2018,240540,139.95,Vodafone Limited
Central Services to the Public,Management & Support Services,Environmental,Supplies & Services,Communications & Computing,Mobile Telephone Charges,26/04/2018,240540,35,Vodafone Limited
Central Services to the Public,Management & Support Services,Environmental,Supplies & Services,Communications & Computing,Mobile Telephone Charges,26/04/2018,240540,24.5,Vodafone Limited
Planning & Development,Economic Development,Estates and Economic Development ,Supplies & Services,Services,Training Courses,12/04/2018,240077,687.5,Ucps Learning Ltd
Cultural & Related,Culture & Heritage,Community and Leisure ,Supplies & Services,Catering,Non-Contract Catering,19/04/2018,240359,587.07,Carlsberg Uk Ltd
Central Services to the Public,Management & Support Services,Environmental,Transport Related Expenditure,Direct Transport Costs,Workshop Consumables,26/04/2018,240827,429.52,Md Services (Andover) Ltd
Central Services to the Public,Management & Support Services,Environmental,Transport Related Expenditure,Direct Transport Costs,Repair Materials,26/04/2018,240827,84.8,Md Services (Andover) Ltd
Central Services to the Public,Management & Support Services,Environmental,Supplies & Services,"Equipment, Furniture & Materials",Purchase Tools,26/04/2018,240827,82.59,Md Services (Andover) Ltd
Central Services to the Public,Local Tax Collection,Revenues,Supplies & Services,Miscellaneous Expenses,All Pay Fees,12/04/2018,239939,601.82,Allpay Limited
Central Services to the Public,Management & Support Services,Estates and Economic Development ,Premises related Expenditure,Energy Costs,Gas,12/04/2018,239541,603.57,Total Gas & Power Ltd
Cultural & Related,Culture & Heritage,Community and Leisure ,Supplies & Services,Services,Tutors,18/04/2018,240312,740,Personal data - Data Protection Act 1998
Environmental & Regulatory,Street Cleansing (not chargeable to Highways),Environmental,Premises related Expenditure,Rents,Rents,26/04/2018,241027,619.2,Aster Communities
Environmental & Regulatory,Street Cleansing (not chargeable to Highways),Environmental,Premises related Expenditure,Rents,Rents,26/04/2018,241028,619.2,Aster Communities
Cultural & Related,Tourism,Estates and Economic Development ,Supplies & Services,Grants & Subscriptions,Grants,11/04/2018,239730,750,Three Rivers Community Rail Partnership
Environmental & Regulatory,Climate Change costs,Plan Pol & Transport,Supplies & Services,Grants & Subscriptions,Contributions,18/04/2018,240074,750,Three Rivers Community Rail Partnership
Planning & Development,Economic Development,Estates and Economic Development ,Supplies & Services,Grants & Subscriptions,Grants,25/04/2018,240954,750,Studio R Hair
Cultural & Related,Open Spaces,Community and Leisure ,Premises related Expenditure,Repairs Alterations & Maintenance of Buildings,Estates premises costs - AMP,12/04/2018,239731,625,Hrg Tree Services Ltd
Central Services to the Public,Management & Support Services,Revenues,Supplies & Services,Communications & Computing,Computer Hardware,19/04/2018,240336,626.26,E-Buyer (Uk) Limited
Cultural & Related,Open Spaces,Environmental,Supplies & Services,"Equipment, Furniture & Materials",Equipment Lease Rentals,19/04/2018,239949,630.47,Siemens Financial Services Ltd
Central Services to the Public,Management & Support Services,Estates and Economic Development ,Third Party Payments,Private contractors,Main Contractor Costs,05/04/2018,239170,632.5,Hags-Smp Ltd
Environmental & Regulatory,Waste management,Environmental,Employees,Indirect Employee Expenses,Agency Staff - Waged Posts,19/04/2018,240554,641.35,Abacus Employment Services Ltd
Central Services to the Public,Management & Support Services,Estates and Economic Development ,Third Party Payments,Other Establishments,Private Contractors,19/04/2018,240587,655,Alarms & Electrical (Devizes) Ltd
Cultural & Related,Recreation & Sport,Estates and Economic Development ,Premises related Expenditure,Energy Costs,Electricity,19/04/2018,240564,818.58,Andover Community Services Ltd
Cultural & Related,Recreation & Sport,Community and Leisure ,Supplies & Services,Services,Professional Fees,05/04/2018,239172,689.5,Blake Morgan Llp
Cultural & Related,Open Spaces,Environmental,Supplies & Services,"Equipment, Furniture & Materials",Purchase Equip + Materials,26/04/2018,240340,693.23,Btls-Hayley
Central Services to the Public,Management & Support Services,Estates and Economic Development ,Third Party Payments,Other Establishments,Private Contractors,26/04/2018,240819,695,Purbeck Civil Engineering Limited
Cultural & Related,Culture & Heritage,Estates and Economic Development ,Premises related Expenditure,Repairs Alterations & Maintenance of Buildings,Estates premises costs - AMP,26/04/2018,241032,700,Bristol Stone Masonry Ltd
Central Services to the Public,Management & Support Services,Estates and Economic Development ,Supplies & Services,Services,Training Courses,19/04/2018,240054,710,Esri (Uk) Ltd
"Highways, Roads & Transport",Parking Services,Plan Pol & Transport,Employees,Indirect Employee Expenses,Advertising Of Vacancies,05/04/2018,239458,719.4,Newsquest Media Group Ltd
Planning & Development,Development Control,Planning & Building,Supplies & Services,"Equipment, Furniture & Materials",Maintenance Of Tools,26/04/2018,241036,740,The Microfilm Shop
Central Services to the Public,Management & Support Services,IT,Supplies & Services,"Equipment, Furniture & Materials",Maintenance Equip + Materials,19/04/2018,240315,741.67,Quadrant Security Group Ltd
Environmental & Regulatory,Street Cleansing (not chargeable to Highways),Environmental,Supplies & Services,"Equipment, Furniture & Materials",Purchase Equip + Materials,12/04/2018,239424,745,Imperial Polythene Products Ltd
Environmental & Regulatory,Street Cleansing (not chargeable to Highways),Environmental,Supplies & Services,"Equipment, Furniture & Materials",Purchase Equip + Materials,12/04/2018,239425,745,Imperial Polythene Products Ltd
Planning & Development,Community Development,Community and Leisure ,Supplies & Services,Grants & Subscriptions,Grants,12/04/2018,239963,895,Romsey And District Carers Forum
Cultural & Related,Tourism,Estates and Economic Development ,Supplies & Services,Miscellaneous Expenses,Promotions / Special Events,19/04/2018,240075,750,Apl Media Ltd
Central Services,Corporate & Democratic Core,Corporate & Democratic,Supplies & Services,Services,Professional Advice,19/04/2018,240324,750,Dc Commercial Solicitors
External Trading Accounts,Business Parks,Estates and Economic Development ,Supplies & Services,Miscellaneous Expenses,Waste Collection,12/04/2018,239717,767.25,Basingstoke Skip Hire & Sthrn Waste Mgt Ltd
"Highways, Roads & Transport",Public Transport,Plan Pol & Transport,Third Party Payments,Transport Operators in Respect of Concessionary Fares,Voluntary Orgs Reimbursement,26/04/2018,241084,927,Romsey Good Neighbours
External Trading Accounts,Business Parks,Estates and Economic Development ,Supplies & Services,"Printing, Stationery & General Office Expenses",Postage Costs,26/04/2018,241023,787,Royal Mail
Central Services to the Public,Management & Support Services,Estates and Economic Development ,Transport Related Expenditure,Direct Transport Costs,Repair Materials,12/04/2018,239783,11.1,Md Services (Andover) Ltd
Environmental & Regulatory,Regulatory Services,Housing and Environmental Health ,Transport Related Expenditure,Direct Transport Costs,Repair Materials,12/04/2018,239783,4.44,Md Services (Andover) Ltd
Environmental & Regulatory,Regulatory Services,Housing and Environmental Health ,Transport Related Expenditure,Direct Transport Costs,Repair Materials,12/04/2018,239783,4.44,Md Services (Andover) Ltd
"Highways, Roads & Transport",Parking Services,Plan Pol & Transport,Transport Related Expenditure,Direct Transport Costs,Repair Materials,12/04/2018,239783,4.44,Md Services (Andover) Ltd
Cultural & Related,Open Spaces,Environmental,Transport Related Expenditure,Direct Transport Costs,Repair Materials,12/04/2018,239783,91.02,Md Services (Andover) Ltd
Environmental & Regulatory,Street Cleansing (not chargeable to Highways),Environmental,Transport Related Expenditure,Direct Transport Costs,Repair Materials,12/04/2018,239783,55.5,Md Services (Andover) Ltd
Environmental & Regulatory,Waste management,Environmental,Transport Related Expenditure,Direct Transport Costs,Repair Materials,12/04/2018,239783,63.34,Md Services (Andover) Ltd
Environmental & Regulatory,Waste management,Environmental,Transport Related Expenditure,Direct Transport Costs,Repair Materials,12/04/2018,239783,6.66,Md Services (Andover) Ltd
Central Services to the Public,Management & Support Services,Environmental,Transport Related Expenditure,Direct Transport Costs,Repair Materials,12/04/2018,239783,439.47,Md Services (Andover) Ltd
Central Services to the Public,Management & Support Services,Environmental,Supplies & Services,"Equipment, Furniture & Materials",Purchase Tools,12/04/2018,239783,115.66,Md Services (Andover) Ltd
Central Services to the Public,Management & Support Services,Environmental,Transport Related Expenditure,Direct Transport Costs,Repair Materials,12/04/2018,239783,6.66,Md Services (Andover) Ltd
Central Services to the Public,Management & Support Services,IT,Supplies & Services,Communications & Computing,Hardware Maintenance,13/04/2018,186964,805.32,Intrinsic Technology
"Highways, Roads & Transport",Public Transport,Plan Pol & Transport,Third Party Payments,Transport Operators in Respect of Concessionary Fares,Voluntary Orgs Reimbursement,05/04/2018,239591,968.5,Romsey Good Neighbours
"Highways, Roads & Transport",Parking Services,Plan Pol & Transport,Supplies & Services,"Equipment, Furniture & Materials",Purchase Equip + Materials,19/04/2018,240083,818.58,Imperial Civil Enforcement Solutions
Planning & Development,Community Development,Community and Leisure ,Supplies & Services,Grants & Subscriptions,Grants,26/04/2018,241043,983,Unity For Transport
Central Services to the Public,Local Tax Collection,Revenues,Supplies & Services,Services,Professional Fees,19/04/2018,239950,825,Inform Cpi Ltd
Planning & Development,Community Development,Community and Leisure ,Supplies & Services,Grants & Subscriptions,Grants,11/04/2018,239928,1000,Andover Churches Together
Planning & Development,Community Development,Community and Leisure ,Supplies & Services,Grants & Subscriptions,Grants,25/04/2018,240957,1000,Friends Of Andover War Memorial Hospital
Planning & Development,Community Development,Community and Leisure ,Supplies & Services,Grants & Subscriptions,Grants,25/04/2018,240958,1000,Challengers
Central Services to the Public,Management & Support Services,Housing and Environmental Health ,Supplies & Services,Grants & Subscriptions,Subscriptions,19/04/2018,239500,1000,Hart District Council
Planning & Development,Community Development,Community and Leisure ,Supplies & Services,Grants & Subscriptions,Grants,26/04/2018,241086,1000,Mottisfont Village Hall
Planning & Development,Economic Development,Estates and Economic Development ,Supplies & Services,Grants & Subscriptions,Grants,05/04/2018,239515,1000,G.T Marketing & Pr
Planning & Development,Community Development,Community and Leisure ,Supplies & Services,Grants & Subscriptions,Grants,26/04/2018,241045,1000,John Hanson Community School
Cultural & Related,Open Spaces,Community and Leisure ,Premises related Expenditure,Grounds Maintenance Costs,Gm - Additional Works,19/04/2018,240335,843.5,Ogilvie Engineering Ltd
Central Services to the Public,Management & Support Services,Legal & Democratic,Employees,Indirect Employee Expenses,Agency Staff - Waged Posts,19/04/2018,240321,843.75,Venn Group
Cultural & Related,Culture & Heritage,Community and Leisure ,Supplies & Services,Miscellaneous Expenses,Booking Of Acts,12/04/2018,239947,852,Honalee Media
Central Services to the Public,Management & Support Services,IT,Supplies & Services,Communications & Computing,Land Line Telephone Charges,12/04/2018,239798,856.47,Virgin Media Payments Ltd
Central Services to the Public,Management & Support Services,Legal & Democratic,Employees,Indirect Employee Expenses,Agency Staff - Waged Posts,12/04/2018,239143,866.25,Venn Group
Environmental & Regulatory,Regulatory Services,Housing and Environmental Health ,Supplies & Services,Miscellaneous Expenses,Kennel fees,19/04/2018,240306,870,Anton Vets Ltd
Central Services to the Public,Management & Support Services,HR Services,Employees,Indirect Employee Expenses,Temporary Staff,26/04/2018,240614,872.85,Hays Specialist Recruitment
Planning & Development,Economic Development,Estates and Economic Development ,Supplies & Services,Services,Training Courses,19/04/2018,240350,1051,Oaktree Business Management
Central Services to the Public,Management & Support Services,Estates and Economic Development ,Third Party Payments,Other Establishments,Private Contractors,05/04/2018,239537,877,Doorgear Limited
Central Services,Corporate & Democratic Core,Corporate & Democratic,Supplies & Services,Grants & Subscriptions,Subscriptions,05/04/2018,238950,890,Improvement And Development Agency
Central Services to the Public,Management & Support Services,Finance,Supplies & Services,"Printing, Stationery & General Office Expenses",Postage Costs,12/04/2018,239942,905.36,Whistl Uk Ltd
Central Services to the Public,Management & Support Services,Legal & Democratic,Supplies & Services,"Printing, Stationery & General Office Expenses",Photocopying Costs,19/04/2018,240381,908.63,Ricoh Uk Ltd
Central Services to the Public,Management & Support Services,Legal & Democratic,Supplies & Services,Services,Professional Advice,05/04/2018,238780,927.5,Dc Commercial Solicitors
Central Services to the Public,Management & Support Services,IT,Supplies & Services,"Printing, Stationery & General Office Expenses",Photocopying Costs,26/04/2018,240063,953.15,Xerox (Uk) Ltd
Central Services,Corporate & Democratic Core,Corporate & Democratic,Supplies & Services,Communications & Computing,Land Line Telephone Charges,19/04/2018,240311,969.56,Invicta Lifeline Ltd
Cultural & Related,Recreation & Sport,Community and Leisure ,Premises related Expenditure,Repairs Alterations & Maintenance of Buildings,Estates premises costs - AMP,05/04/2018,239185,980,Sonic Scaffolding 2000 Ltd
Central Services to the Public,Management & Support Services,Estates and Economic Development ,Supplies & Services,"Equipment, Furniture & Materials",Purchase Materials (Job Cost),12/04/2018,239722,1000,Yesss Electrical
Central Services to the Public,Management & Support Services,Finance,Supplies & Services,Services,Project Consultancy - Policy,26/04/2018,240368,1000,Public Sector Consultants Ltd
Central Services to the Public,Management & Support Services,Environmental,Supplies & Services,Grants & Subscriptions,Subscriptions,19/04/2018,240362,1032,Freight Transport Association
Environmental & Regulatory,Waste management,Environmental,Transport Related Expenditure,Direct Transport Costs,Repair Materials,19/04/2018,240307,416.72,Terberg Matec Uk Limited
Central Services to the Public,Management & Support Services,Environmental,Transport Related Expenditure,Direct Transport Costs,Repair Materials,19/04/2018,240307,622.4,Terberg Matec Uk Limited
Central Services to the Public,Management & Support Services,Revenues,Supplies & Services,Communications & Computing,Computer Hardware,19/04/2018,240061,1040,Internal System Ltd
Environmental & Regulatory,Regulatory Services,Housing and Environmental Health ,Supplies & Services,Grants and subscriptions,Capital Grants,19/04/2018,240484,1248.54,Northfield Property Solutions Limited
Central Services to the Public,Management & Support Services,HR Services,Supplies & Services,Services,Training Courses,26/04/2018,238450,1047.5,Adaptis Ltd
Central Services,Corporate & Democratic Core,Corporate & Democratic,Supplies & Services,Communications & Computing,Computer Hardware,12/04/2018,239754,1097.94,Advanced Business Solutions
Central Services to the Public,Local Tax Collection,Revenues,Supplies & Services,Communications & Computing,Software Maintenance,05/04/2018,239003,1125,Northgate Public Services Uk Ltd
Environmental & Regulatory,Waste management,Environmental,Transport Related Expenditure,Direct Transport Costs,Repair Materials,12/04/2018,239790,1151.95,Pitter Commercials Ltd
Cultural & Related,Recreation & Sport,Estates and Economic Development ,Premises related Expenditure,Energy Costs,Electricity,19/04/2018,240065,1154.3,British Gas Business
Environmental & Regulatory,Waste management,Environmental,Transport Related Expenditure,Direct Transport Costs,Repair Materials,12/04/2018,239795,1210.68,Dennis Eagle Ltd
Environmental & Regulatory,Waste management,Environmental,Employees,Indirect Employee Expenses,Agency Staff - Waged Posts,05/04/2018,239452,791.19,Simple Recruitment Services Ltd
Environmental & Regulatory,Waste management,Environmental,Employees,Indirect Employee Expenses,Agency Staff - Waged Posts,05/04/2018,239452,438.44,Simple Recruitment Services Ltd
Environmental & Regulatory,Waste management,Environmental,Transport Related Expenditure,Direct Transport Costs,Repair Materials,26/04/2018,240856,1230.8,Dennis Eagle Ltd
Environmental & Regulatory,Waste management,Environmental,Employees,Indirect Employee Expenses,Agency Staff - Waged Posts,12/04/2018,239970,1243.44,365 Supply Ltd
Environmental & Regulatory,Regulatory Services,Housing and Environmental Health ,Supplies & Services,Miscellaneous Expenses,Health And Safety,19/04/2018,240354,1245.48,Skyguard Ltd
Central Services to the Public,Management & Support Services,Estates and Economic Development ,Third Party Payments,Other Establishments,Private Contractors,05/04/2018,239448,1260.38,Spear Electrical Limited
Cultural & Related,Culture & Heritage,Community and Leisure ,Supplies & Services,"Printing, Stationery & General Office Expenses",Licences / Affiliation Fees,19/04/2018,240069,1262.85,Ppl Prs Ltd
Central Services to the Public,Management & Support Services,Legal & Democratic,Employees,Indirect Employee Expenses,Agency Staff - Waged Posts,19/04/2018,240322,1271.25,Venn Group
Environmental & Regulatory,Waste management,Environmental,Transport Related Expenditure,Direct Transport Costs,Repair Materials,26/04/2018,240468,38.94,Dennis Eagle Ltd
Central Services to the Public,Management & Support Services,Environmental,Transport Related Expenditure,Direct Transport Costs,Repair Materials,26/04/2018,240468,1240.12,Dennis Eagle Ltd
Planning & Development,Planning Policy,Plan Pol & Transport,Supplies & Services,Grants & Subscriptions,Grants,26/04/2018,238522,1549.15,Hampshire County Council
Central Services to the Public,Management & Support Services,HR Services,Supplies & Services,Services,External Training Consultants,12/04/2018,239757,1295,Yellowday Training Ltd
Environmental & Regulatory,Regulatory Services,Housing and Environmental Health ,Supplies & Services,Grants and subscriptions,Capital Grants,26/04/2018,241048,1583.04,Hampshire Mobility Services
Central Services to the Public,Management & Support Services,Environmental,Supplies & Services,Communications & Computing,Software Maintenance,12/04/2018,239463,1341.73,Civica Uk Ltd
Planning & Development,Economic Development,Estates and Economic Development ,Supplies & Services,Grants & Subscriptions,Grants,04/04/2018,239022,1625,Hampshire County Council
Environmental & Regulatory,"Cemetery, Cremation and Mortuary Services",Community and Leisure ,Premises related Expenditure,Repairs Alterations & Maintenance of Buildings,Estates premises costs - AMP,05/04/2018,239432,1392,Blackwell And Moody Ltd
Central Services to the Public,Local Tax Collection,Revenues,Supplies & Services,Communications & Computing,Software Maintenance,19/04/2018,240367,1400,Northgate Public Services Uk Ltd
Environmental & Regulatory,Regulatory Services,Housing and Environmental Health ,Supplies & Services,Grants and subscriptions,Capital Grants,26/04/2018,241047,1681,Prism Medical Uk
Environmental & Regulatory,Waste management,Environmental,Transport Related Expenditure,Direct Transport Costs,Tyres,12/04/2018,239744,1366.62,Ats Euromaster Limited
Environmental & Regulatory,Waste management,Environmental,Transport Related Expenditure,Direct Transport Costs,Tyres,12/04/2018,239744,57.2,Ats Euromaster Limited
External Trading Accounts,Business Parks,Estates and Economic Development ,Premises related Expenditure,Repairs Alterations & Maintenance of Buildings,Estates premises costs - AMP,19/04/2018,240581,1425.05,Options Flooring Ltd
Central Services to the Public,Management & Support Services,HR Services,Employees,Indirect Employee Expenses,Temporary Staff,26/04/2018,240615,1454.75,Hays Specialist Recruitment
Environmental & Regulatory,Regulatory Services,Housing and Environmental Health ,Supplies & Services,Grants and subscriptions,Capital Grants,26/04/2018,241049,1773.5,Hampshire Mobility Services
Central Services to the Public,Management & Support Services,Estates and Economic Development ,Third Party Payments,Other Establishments,Private Contractors,19/04/2018,240330,1480,Waterside Blinds
Central Services to the Public,Management & Support Services,Estates and Economic Development ,Third Party Payments,Other Establishments,Private Contractors,12/04/2018,240049,1490.8,Clearwater 2010 Ltd
Cultural & Related,Open Spaces,Community and Leisure ,Supplies & Services,"Equipment, Furniture & Materials",Purchase Equip + Materials,26/04/2018,240821,1500,Wildflower Turf Ltd
Central Services to the Public,Management & Support Services,Estates and Economic Development ,Premises related Expenditure,Repairs Alterations & Maintenance of Buildings,Building Maint - Non Estates,05/04/2018,239536,1516,Doorgear Limited
Central Services to the Public,Management & Support Services,Estates and Economic Development ,Supplies & Services,"Printing, Stationery & General Office Expenses",Licences / Affiliation Fees,26/04/2018,241008,1600,Healthy Buildings International
Environmental & Regulatory,Regulatory Services,Housing and Environmental Health ,Supplies & Services,Grants and subscriptions,Capital Grants,19/04/2018,240482,1945,Prism Medical Uk
"Highways, Roads & Transport",Public Transport,Plan Pol & Transport,Third Party Payments,Transport Operators in Respect of Concessionary Fares,Voluntary Orgs Reimbursement,26/04/2018,241085,2000,Stockbridge Neighbourcare
Central Services to the Public,Management & Support Services,Estates and Economic Development ,Third Party Payments,Other Establishments,Private Contractors,05/04/2018,239183,2009.59,Rjb M & E
Cultural & Related,Culture & Heritage,Community and Leisure ,Supplies & Services,Miscellaneous Expenses,Booking Of Acts,26/04/2018,240851,1679.34,Off The Kerb Productions
Environmental & Regulatory,Regulatory Services,Housing and Environmental Health ,Supplies & Services,Miscellaneous Expenses,Kennel fees,26/04/2018,240635,1707.48,Newbury Lodge Kennels
Central Services to the Public,Management & Support Services,Finance,Supplies & Services,Communications & Computing,Software Maintenance,12/04/2018,239480,858.93,Bottomline Technologies Ltd
Central Services to the Public,Local Tax Collection,Revenues,Supplies & Services,Communications & Computing,Software Maintenance,12/04/2018,239480,858.93,Bottomline Technologies Ltd
Planning & Development,Development Control,Planning & Building,Supplies & Services,"Equipment, Furniture & Materials",Purchase Equip + Materials,19/04/2018,239446,504.05,Lyreco Uk Ltd
Planning & Development,Development Control,Planning & Building,Supplies & Services,"Printing, Stationery & General Office Expenses",Stationery,19/04/2018,239446,587.29,Lyreco Uk Ltd
Planning & Development,Development Control,Planning & Building,Supplies & Services,"Printing, Stationery & General Office Expenses",Print Consumables,19/04/2018,239446,711.21,Lyreco Uk Ltd
Cultural & Related,Culture & Heritage,Community and Leisure ,Supplies & Services,Miscellaneous Expenses,Booking Of Acts,05/04/2018,239123,1832.81,Ballet Theatre Uk
Central Services to the Public,Management & Support Services,Estates and Economic Development ,Third Party Payments,Other Establishments,Contract Catering,12/04/2018,239779,1846,Edwards And Ward Ltd
Cultural & Related,Culture & Heritage,Community and Leisure ,Supplies & Services,Catering,Non-Contract Catering,26/04/2018,240633,1937.37,Carlsberg Uk Ltd
Cultural & Related,Culture & Heritage,Community and Leisure ,Supplies & Services,Miscellaneous Expenses,Booking Of Acts,26/04/2018,240852,2345.34,Fever Productions
Central Services to the Public,Management & Support Services,Environmental,Transport Related Expenditure,Direct Transport Costs,Diesel,19/04/2018,240301,1973.4,Wp Group Limited
Cultural & Related,Open Spaces,Environmental,Supplies & Services,"Equipment, Furniture & Materials",Purchases for playgrounds,05/04/2018,239164,2019.52,Gb Sport & Leisure Uk Ltd
Central Services to the Public,Local Tax Collection,Revenues,Supplies & Services,Communications & Computing,Software Maintenance,26/04/2018,240934,203.01,Northgate Public Services Uk Ltd
Central Services to the Public,Local Tax Collection,Revenues,Supplies & Services,Communications & Computing,Software Maintenance,26/04/2018,240934,812.05,Northgate Public Services Uk Ltd
Housing Services,Housing Benefits ,Revenues,Supplies & Services,Communications & Computing,Software Maintenance,26/04/2018,240934,507.54,Northgate Public Services Uk Ltd
Central Services to the Public,Local Tax Collection,Revenues,Supplies & Services,Communications & Computing,Software Maintenance,26/04/2018,240934,507.54,Northgate Public Services Uk Ltd
Central Services to the Public,Management & Support Services,Finance,Supplies & Services,"Printing, Stationery & General Office Expenses",Postage Costs,26/04/2018,240551,2130.46,Whistl Uk Ltd
Central Services to the Public,Management & Support Services,Estates and Economic Development ,Third Party Payments,Other Establishments,Contract Catering,12/04/2018,239778,2196.56,Edwards And Ward Ltd
Environmental & Regulatory,Waste management,Environmental,Employees,Indirect Employee Expenses,Agency Staff - Waged Posts,19/04/2018,240561,2154.88,365 Supply Ltd
Environmental & Regulatory,Waste management,Environmental,Employees,Indirect Employee Expenses,Agency Staff - Waged Posts,19/04/2018,240561,111.23,365 Supply Ltd
Central Services,Corporate & Democratic Core,Corporate & Democratic,Supplies & Services,"Printing, Stationery & General Office Expenses",External Printing,26/04/2018,238135,2736,Mortons Print
Planning & Development,Community Development,Community and Leisure ,Supplies & Services,Grants & Subscriptions,Grants,19/04/2018,240616,2766,Abbotts Ann War Memorial Hall
Central Services to the Public,Management & Support Services,Finance,Supplies & Services,"Printing, Stationery & General Office Expenses",Postage Costs,19/04/2018,239980,2337.03,Whistl Uk Ltd
Central Services to the Public,Management & Support Services,Environmental,Transport Related Expenditure,Direct Transport Costs,Diesel,19/04/2018,240303,2369.07,Wp Group Limited
Central Services to the Public,Management & Support Services,Estates and Economic Development ,Premises related Expenditure,Energy Costs,Gas,26/04/2018,240455,2376.83,Total Gas & Power Ltd
Cultural & Related,Culture & Heritage,Community and Leisure ,Supplies & Services,Miscellaneous Expenses,Booking Of Acts,26/04/2018,240935,2412.66,Crowded House Entertainmnents Ltd
Cultural & Related,Culture & Heritage,Community and Leisure ,Supplies & Services,Miscellaneous Expenses,Booking Of Acts,19/04/2018,240300,2420,Off The Kerb Productions
Environmental & Regulatory,Waste management,Environmental,Employees,Indirect Employee Expenses,Agency Staff - Waged Posts,26/04/2018,240559,2430.77,365 Supply Ltd
Central Services,Corporate & Democratic Core,Corporate & Democratic,Supplies & Services,Communications & Computing,Computer Software,12/04/2018,239972,2433.33,Advanced Business Solutions
Cultural & Related,Culture & Heritage,Community and Leisure ,Supplies & Services,Miscellaneous Expenses,Booking Of Acts,19/04/2018,240546,2437,Three Bag Harry Ltd
Cultural & Related,Culture & Heritage,Community and Leisure ,Supplies & Services,Miscellaneous Expenses,Booking Of Acts,04/04/2018,110667,2469,Personal data - Data Protection Act 1998
Central Services to the Public,Management & Support Services,Estates and Economic Development ,Premises related Expenditure,Repairs Alterations & Maintenance of Buildings,Building Maint - Non Estates,26/04/2018,241014,2510,Aztec Fencing Ltd
Cultural & Related,Culture & Heritage,Community and Leisure ,Supplies & Services,Miscellaneous Expenses,Booking Of Acts,19/04/2018,240610,2608.34,Artistes International Management
Central Services to the Public,Management & Support Services,Finance,Supplies & Services,"Printing, Stationery & General Office Expenses",Postage Costs,05/04/2018,239168,2679.42,Whistl Uk Ltd
Central Services to the Public,Management & Support Services,Estates and Economic Development ,Third Party Payments,Private contractors,Main Contractor Costs,12/04/2018,239756,2850,Barron & Partners
Environmental & Regulatory,Regulatory Services,Housing and Environmental Health ,Supplies & Services,Grants and subscriptions,Capital Grants,05/04/2018,239584,3526.49,Dolphin Mobility
Environmental & Regulatory,Regulatory Services,Housing and Environmental Health ,Supplies & Services,Grants and subscriptions,Capital Grants,19/04/2018,240600,3697.86,P M Plumbing & Carpentry
Environmental & Regulatory,Street Cleansing (not chargeable to Highways),Environmental,Supplies & Services,"Equipment, Furniture & Materials",Purchase Equip + Materials,19/04/2018,239937,3104.4,Imperial Polythene Products Ltd
Central Services to the Public,Management & Support Services,Environmental,Transport Related Expenditure,Direct Transport Costs,Diesel,12/04/2018,239476,3115.2,Wp Group Limited
Environmental & Regulatory,Street Cleansing (not chargeable to Highways),Environmental,Supplies & Services,"Equipment, Furniture & Materials",Purchase Equip + Materials,19/04/2018,239938,3120,Imperial Polythene Products Ltd
Environmental & Regulatory,Street Cleansing (not chargeable to Highways),Environmental,Premises related Expenditure,Water Services,Water And Sewerage Charges,12/04/2018,239530,3145,Aquam Water Services
Planning & Development,Development Control,Planning & Building,Supplies & Services,Services,Project Consultancy - Policy,19/04/2018,240325,3250,Lichfields
Central Services to the Public,Management & Support Services,IT,Supplies & Services,Communications & Computing,Communication Links,12/04/2018,239491,3252,Virgin Media Payments Ltd
Central Services to the Public,Management & Support Services,IT,Supplies & Services,Communications & Computing,Communication Links,19/04/2018,239967,3326.42,Vodafone Cable & Wireless Uk
Environmental & Regulatory,Regulatory Services,Housing and Environmental Health ,Supplies & Services,Grants and subscriptions,Capital Grants,26/04/2018,241050,4016.21,Spc Bathrooms Ltd
Environmental & Regulatory,Waste management,Environmental,Supplies & Services,"Equipment, Furniture & Materials",Purchase Equip + Materials,05/04/2018,239449,3419.04,Egbert H Taylor & Co Ltd
Environmental & Regulatory,Regulatory Services,Housing and Environmental Health ,Supplies & Services,Grants and subscriptions,Capital Grants,19/04/2018,240483,4332.51,Lifestyle Solutions
Environmental & Regulatory,Regulatory Services,Legal & Democratic,Supplies & Services,"Equipment, Furniture & Materials",Purchase Equip + Materials,12/04/2018,240055,3313.5,Newauto Ltd T/A Mogo (Uk)
Environmental & Regulatory,Regulatory Services,Legal & Democratic,Supplies & Services,"Equipment, Furniture & Materials",Purchase Equip + Materials,12/04/2018,240055,372,Newauto Ltd T/A Mogo (Uk)
Cultural & Related,Open Spaces,Environmental,Supplies & Services,"Equipment, Furniture & Materials",Purchase Equip + Materials,19/04/2018,240620,3968,Lister Wilder
Central Services to the Public,Local Land Charges,Legal & Democratic,Supplies & Services,Miscellaneous Expenses,Land Charges Fees,12/04/2018,239792,4045.5,Hampshire County Council
Central Services to the Public,Management & Support Services,Community and Leisure ,Supplies & Services,Miscellaneous Expenses,Promotions / Special Events,05/04/2018,239153,5000,Romsey Community School
Planning & Development,Community Development,Community and Leisure ,Supplies & Services,Communications & Computing,Computer Software,19/04/2018,239804,4200,Fluent Technology Ltd
Central Services to the Public,Local Tax Collection,Revenues,Supplies & Services,Communications & Computing,Software Maintenance,05/04/2018,239004,4500,Northgate Public Services Uk Ltd
Cultural & Related,Culture & Heritage,Community and Leisure ,Supplies & Services,Miscellaneous Expenses,Booking Of Acts,12/04/2018,240072,4558,Off The Kerb Productions
Cultural & Related,Recreation & Sport,Community and Leisure ,Supplies & Services,"Equipment, Furniture & Materials",Purchase Equip + Materials,05/04/2018,239173,4680,Defibshop
Cultural & Related,Recreation & Sport,Community and Leisure ,Supplies & Services,"Equipment, Furniture & Materials",Purchase Equip + Materials,05/04/2018,239173,80,Defibshop
"Highways, Roads & Transport",Parking Services,Plan Pol & Transport,Supplies & Services,Services,Professional Fees,19/04/2018,239718,4805.05,Keyline Chartered Security Ltd
Central Services to the Public,Management & Support Services,Environmental,Transport Related Expenditure,Direct Transport Costs,Diesel,12/04/2018,239477,4867.5,Wp Group Limited
Central Services to the Public,Management & Support Services,IT,Supplies & Services,Communications & Computing,Software Maintenance,05/04/2018,239431,5399.66,Sbl
Housing Services,Homelessness,Housing and Environmental Health ,Supplies & Services,Communications & Computing,Computer Software,12/04/2018,239936,5500,Civica Uk Ltd
Central Services to the Public,Management & Support Services,Finance,Supplies & Services,"Printing, Stationery & General Office Expenses",Postage Costs,12/04/2018,239953,6621.93,Pitney Bowes Limited
External Trading Accounts,Business Parks,Estates and Economic Development ,Premises related Expenditure,Rents,Rents,26/04/2018,240860,5750,Langdown Estates Llp
Central Services to the Public,Management & Support Services,Environmental,Transport Related Expenditure,Direct Transport Costs,Diesel,19/04/2018,240302,5882.18,Wp Group Limited
Central Services to the Public,Management & Support Services,Estates and Economic Development ,Premises related Expenditure,Repairs Alterations & Maintenance of Buildings,Estates premises costs - AMP,26/04/2018,241042,7198.56,Gallagher Flooring Ltd
Central Services to the Public,Management & Support Services,IT,Supplies & Services,Communications & Computing,Computer Software,19/04/2018,240565,6000,Centerprise International
External Trading Accounts,Business Parks,Estates and Economic Development ,Premises related Expenditure,Repairs Alterations & Maintenance of Buildings,Planned Maintenance - Non Est,12/04/2018,239713,214.64,Healthy Buildings International
External Trading Accounts,Business Parks,Estates and Economic Development ,Premises related Expenditure,Repairs Alterations & Maintenance of Buildings,Planned Maintenance - Non Est,12/04/2018,239713,643.92,Healthy Buildings International
Cultural & Related,Tourism,Estates and Economic Development ,Premises related Expenditure,Repairs Alterations & Maintenance of Buildings,Planned Maintenance - Non Est,12/04/2018,239713,214.64,Healthy Buildings International
Cultural & Related,Culture & Heritage,Estates and Economic Development ,Premises related Expenditure,Repairs Alterations & Maintenance of Buildings,Planned Maintenance - Non Est,12/04/2018,239713,214.64,Healthy Buildings International
Cultural & Related,Culture & Heritage,Estates and Economic Development ,Premises related Expenditure,Repairs Alterations & Maintenance of Buildings,Planned Maintenance - Non Est,12/04/2018,239713,214.64,Healthy Buildings International
Cultural & Related,Culture & Heritage,Estates and Economic Development ,Premises related Expenditure,Repairs Alterations & Maintenance of Buildings,Planned Maintenance - Non Est,12/04/2018,239713,214.64,Healthy Buildings International
Cultural & Related,Culture & Heritage,Estates and Economic Development ,Premises related Expenditure,Repairs Alterations & Maintenance of Buildings,Planned Maintenance - Non Est,12/04/2018,239713,214.64,Healthy Buildings International
Cultural & Related,Culture & Heritage,Estates and Economic Development ,Premises related Expenditure,Repairs Alterations & Maintenance of Buildings,Planned Maintenance - Non Est,12/04/2018,239713,214.64,Healthy Buildings International
Central Services to the Public,Management & Support Services,Estates and Economic Development ,Premises related Expenditure,Repairs Alterations & Maintenance of Buildings,Planned Maintenance - Non Est,12/04/2018,239713,214.66,Healthy Buildings International
Central Services to the Public,Management & Support Services,Estates and Economic Development ,Premises related Expenditure,Repairs Alterations & Maintenance of Buildings,Planned Maintenance - Non Est,12/04/2018,239713,214.64,Healthy Buildings International
Central Services to the Public,Management & Support Services,Estates and Economic Development ,Premises related Expenditure,Repairs Alterations & Maintenance of Buildings,Planned Maintenance - Non Est,12/04/2018,239713,214.64,Healthy Buildings International
Central Services to the Public,Management & Support Services,Estates and Economic Development ,Premises related Expenditure,Repairs Alterations & Maintenance of Buildings,Planned Maintenance - Non Est,12/04/2018,239713,214.64,Healthy Buildings International
Environmental & Regulatory,Regulatory Services,Estates and Economic Development ,Premises related Expenditure,Repairs Alterations & Maintenance of Buildings,Planned Maintenance - Non Est,12/04/2018,239713,429.28,Healthy Buildings International
Cultural & Related,Recreation & Sport,Community and Leisure ,Premises related Expenditure,Repairs Alterations & Maintenance of Buildings,Planned Maintenance - Non Est,12/04/2018,239713,214.66,Healthy Buildings International
Cultural & Related,Recreation & Sport,Community and Leisure ,Premises related Expenditure,Repairs Alterations & Maintenance of Buildings,Planned Maintenance - Non Est,12/04/2018,239713,214.64,Healthy Buildings International
Cultural & Related,Recreation & Sport,Community and Leisure ,Premises related Expenditure,Repairs Alterations & Maintenance of Buildings,Planned Maintenance - Non Est,12/04/2018,239713,214.64,Healthy Buildings International
Cultural & Related,Recreation & Sport,Community and Leisure ,Premises related Expenditure,Repairs Alterations & Maintenance of Buildings,Planned Maintenance - Non Est,12/04/2018,239713,214.66,Healthy Buildings International
Cultural & Related,Recreation & Sport,Community and Leisure ,Premises related Expenditure,Repairs Alterations & Maintenance of Buildings,Planned Maintenance - Non Est,12/04/2018,239713,214.64,Healthy Buildings International
Cultural & Related,Recreation & Sport,Community and Leisure ,Premises related Expenditure,Repairs Alterations & Maintenance of Buildings,Planned Maintenance - Non Est,12/04/2018,239713,214.64,Healthy Buildings International
Cultural & Related,Recreation & Sport,Community and Leisure ,Premises related Expenditure,Repairs Alterations & Maintenance of Buildings,Planned Maintenance - Non Est,12/04/2018,239713,214.66,Healthy Buildings International
Environmental & Regulatory,"Cemetery, Cremation and Mortuary Services",Community and Leisure ,Premises related Expenditure,Repairs Alterations & Maintenance of Buildings,Planned Maintenance - Non Est,12/04/2018,239713,214.64,Healthy Buildings International
Environmental & Regulatory,"Cemetery, Cremation and Mortuary Services",Community and Leisure ,Premises related Expenditure,Repairs Alterations & Maintenance of Buildings,Planned Maintenance - Non Est,12/04/2018,239713,214.64,Healthy Buildings International
Cultural & Related,Open Spaces,Community and Leisure ,Premises related Expenditure,Repairs Alterations & Maintenance of Buildings,Planned Maintenance - Non Est,12/04/2018,239713,214.64,Healthy Buildings International
Cultural & Related,Culture & Heritage,Community and Leisure ,Premises related Expenditure,Repairs Alterations & Maintenance of Buildings,Planned Maintenance - Non Est,12/04/2018,239713,214.64,Healthy Buildings International
"Highways, Roads & Transport",Parking Services,Plan Pol & Transport,Premises related Expenditure,Repairs Alterations & Maintenance of Buildings,Planned Maintenance - Non Est,12/04/2018,239713,214.64,Healthy Buildings International
Central Services to the Public,Management & Support Services,Environmental,Transport Related Expenditure,Direct Transport Costs,Vehicles and Plant,12/04/2018,239806,6200,Kgm Ltd
Central Services to the Public,Management & Support Services,Finance,Supplies & Services,Communications & Computing,Software Maintenance,12/04/2018,239733,6700,Eus Holdings Ltd
Environmental & Regulatory,Regulatory Services,Housing and Environmental Health ,Supplies & Services,Grants and subscriptions,Capital Grants,12/04/2018,230008,8092,Astor Bannerman (Medical) Ltd
Cultural & Related,Recreation & Sport,Community and Leisure ,Supplies & Services,"Equipment, Furniture & Materials",Purchase Equip + Materials,12/04/2018,231438,7950,Total Swimming Ltd
Central Services to the Public,Management & Support Services,Estates and Economic Development ,Premises related Expenditure,Repairs Alterations & Maintenance of Buildings,Estates premises costs - AMP,12/04/2018,240093,8470,Kinnarps (Uk) Ltd
Central Services to the Public,Management & Support Services,Estates and Economic Development ,Supplies & Services,Services,Professional Fees,26/04/2018,240822,8500,Vail Williams
External Trading Accounts,Business Parks,Estates and Economic Development ,Premises related Expenditure,Repairs Alterations & Maintenance of Buildings,Estates premises costs - AMP,19/04/2018,240579,8758,Andover Glass Works Ltd
Central Services,Corporate & Democratic Core,Corporate & Democratic,Supplies & Services,Grants & Subscriptions,Subscriptions,19/04/2018,240351,10450,Local Government Association
External Trading Accounts,Business Parks,Estates and Economic Development ,Third Party Payments,Private contractors,Main Contractor Costs,12/04/2018,239716,11126.38,Kier Property Developments Ltd.
Central Services to the Public,Elections,Legal & Democratic,Supplies & Services,Communications & Computing,Software Maintenance,12/04/2018,239459,11672.64,Xpress Software Solutions Ltd
Central Services to the Public,Management & Support Services,Estates and Economic Development ,Premises related Expenditure,Repairs Alterations & Maintenance of Buildings,Estates premises costs - AMP,19/04/2018,240466,13094.95,Hampshire County Council
Central Services to the Public,Management & Support Services,Environmental,Transport Related Expenditure,Direct Transport Costs,Vehicles and Plant,19/04/2018,240347,15465,Foray Motor Group Ltd
Cultural & Related,Open Spaces,Environmental,Transport Related Expenditure,Direct Transport Costs,Licences,19/04/2018,240347,240,Foray Motor Group Ltd
"Highways, Roads & Transport",Parking Services,Plan Pol & Transport,Third Party Payments,Private contractors,Main Contractor Costs,12/04/2018,239735,15850,Purbeck Civil Engineering Limited
Central Services,Corporate & Democratic Core,Corporate & Democratic,Supplies & Services,Miscellaneous Expenses,External Audit Fees,26/04/2018,240863,15953,Ernst & Young Llp
Central Services to the Public,Management & Support Services,Environmental,Transport Related Expenditure,Direct Transport Costs,Vehicles and Plant,12/04/2018,239805,16605,Kgm Ltd
Central Services to the Public,Management & Support Services,IT,Support Services,IT,IT Hardware costs,05/04/2018,239457,16855,Nce Computer Group (Europe) Ltd
Central Services to the Public,Management & Support Services,Finance,Employees,Direct Employee Expenses,Shared service staffing costs,12/04/2018,240067,17084,Gosport Borough Council
Cultural & Related,Culture & Heritage,Community and Leisure ,Supplies & Services,Grants & Subscriptions,Grants,12/04/2018,239742,22033,King Johns House & Tudor Cottage Trust Ltd
"Highways, Roads & Transport",Parking Services,Plan Pol & Transport,Supplies & Services,Communications & Computing,Software Maintenance,19/04/2018,240323,19025.48,Imperial Civil Enforcement Solutions
Cultural & Related,Recreation & Sport,Community and Leisure ,Supplies & Services,Grants and subscriptions,Capital Grants,19/04/2018,240599,23443.8,Wellow Parish Council
Central Services to the Public,Management & Support Services,IT,Supplies & Services,Communications & Computing,Software Maintenance,12/04/2018,239803,21463,Esri (Uk) Ltd
Central Services to the Public,Management & Support Services,Estates and Economic Development ,Premises related Expenditure,Grounds Maintenance Costs,Grounds Maintenance Contracts,26/04/2018,239781,3750,Gristwood & Toms Ltd
Cultural & Related,Recreation & Sport,Community and Leisure ,Premises related Expenditure,Grounds Maintenance Costs,Non Contract Tree Works,26/04/2018,239781,1029.77,Gristwood & Toms Ltd
Cultural & Related,Open Spaces,Community and Leisure ,Premises related Expenditure,Grounds Maintenance Costs,Non Contract Tree Works,26/04/2018,239781,3592.41,Gristwood & Toms Ltd
Cultural & Related,Open Spaces,Community and Leisure ,Premises related Expenditure,Grounds Maintenance Costs,Non Contract Tree Works,26/04/2018,239781,4616.14,Gristwood & Toms Ltd
Cultural & Related,Open Spaces,Community and Leisure ,Premises related Expenditure,Repairs Alterations & Maintenance of Buildings,Estates premises costs - AMP,26/04/2018,239781,8530.05,Gristwood & Toms Ltd
Central Services to the Public,Management & Support Services,Revenues,Supplies & Services,Communications & Computing,Software Maintenance,12/04/2018,239931,26625,Abavus Limited
Cultural & Related,Open Spaces,Community and Leisure ,Premises related Expenditure,Repairs Alterations & Maintenance of Buildings,Estates premises costs - AMP,12/04/2018,240080,27224.75,Five Rivers Environmental Contracting Ltd
Central Services,Corporate & Democratic Core,Corporate & Democratic,Supplies & Services,Communications & Computing,Computer Hardware,12/04/2018,239763,30691.25,Advanced Business Solutions
Planning & Development,Community Development,Community and Leisure ,Supplies & Services,Grants & Subscriptions,Grants,12/04/2018,240079,65469,Citizen'S Advice Test Valley
Cultural & Related,Recreation & Sport,Community and Leisure ,Third Party Payments,Private contractors,Main Contractor Costs,26/04/2018,241038,60856.27,Safe And Sound Playgrounds
Central Services to the Public,Management & Support Services,Estates and Economic Development ,Third Party Payments,Private contractors,Main Contractor Costs,12/04/2018,239433,70000,Russell Play
Cultural & Related,Tourism,Estates and Economic Development ,Supplies & Services,Grants & Subscriptions,Grants,19/04/2018,240342,72180,Tourism South East
Cultural & Related,Open Spaces,Community and Leisure ,Third Party Payments,Private contractors,Main Contractor Costs,26/04/2018,240834,72957,Hiwwt Trading Ltd
Cultural & Related,Recreation & Sport,Community and Leisure ,Third Party Payments,Private contractors,Main Contractor Costs,12/04/2018,239968,642378.5,Places For People Leisure Ltd - Developments
